bitfinex/quotes_SOLUSD_20251106
["timestamp","ask_amount","ask_price","bid_price","bid_amount"]
[1762431323240,112.02,159.0,158.99,2.19163208]
[1762431323416,112.02,159.0,158.99,2.86163208]
[1762431323819,112.02,159.0,158.99,0.67]
[1762431324646,112.02,159.0,158.97,9.15210835]
[1762431324818,112.02,159.0,158.97,8.48210835]
[1762431325019,112.02,159.0,158.98,2.86163208]
[1762431325431,112.02,159.0,158.99,0.67]
[1762431326948,112.02,159.0,158.99,9.15133583]
[1762431327155,104.7,159.0,158.99,9.15133583]
[1762431327654,7.32,159.0,158.96,2.86163208]
[1762431327818,7.32,159.0,158.97,2.86163208]
[1762431328023,2.19163208,159.02,158.97,2.86163208]
[1762431328323,2.19163208,159.01,158.98,0.67]
[1762431328528,2.19163208,159.02,158.98,0.67]
[1762431328741,7.32,159.01,158.98,0.67]
[1762431328947,6.28858245,159.02,158.98,0.67]
[1762431329153,7.32,159.01,158.98,6.96005534]
[1762431329559,7.32,159.0,158.99,0.67]
[1762431330045,8.47984763,159.03,158.99,0.67]
[1762431330243,7.32,159.02,158.99,0.67]
[1762431331042,13.60854813,159.02,158.99,0.67]
[1762431331467,8.47976047,159.03,158.99,0.67]
[1762431331651,7.32,159.01,158.99,0.67]
[1762431332049,8.47976047,159.03,158.99,0.67]
[1762431332249,15.80019257,159.02,158.99,0.67]
[1762431332457,7.32,159.01,158.99,0.67]
[1762431332651,2.19163208,159.02,158.99,0.67]
[1762431332853,7.32,159.01,158.99,0.67]
[1762431333643,7.32,159.0,158.99,0.67]
[1762431334573,8.48022334,159.02,158.99,0.67]
[1762431334741,7.32,159.01,158.99,0.67]
[1762431335854,7.32,159.0,158.99,0.67]
[1762431336052,8.4798134,159.03,158.99,0.67]
[1762431336248,13.60867327,159.02,158.99,0.67]
[1762431336449,7.32,159.01,158.99,0.67]
[1762431337280,8.48030535,159.02,158.99,0.67]
[1762431337566,7.32,159.01,158.99,0.67]
[1762431338155,7.32,159.0,158.99,0.67]
[1762431340766,7.32,159.0,158.98,6.29008562]
[1762431340951,7.32,159.0,158.99,0.69]
[1762431341352,7.32,159.0,158.96,6.29062466]
[1762431341550,15.80094179,159.0,158.95,0.1]
[1762431341761,0.71,158.99,158.95,0.79]
[1762431342070,8.4821761,158.97,158.95,0.1]
[1762431342245,9.51163208,158.96,158.95,0.1]
[1762431344962,15.80252287,158.96,158.95,0.1]
[1762431349779,39.29615495,158.96,158.95,0.1]
[1762431351463,68.70415495,158.96,158.95,1e-08]
[1762431351655,67.95905119,158.96,158.95,1e-08]
[1762431351979,75.27905119,158.96,158.95,1e-08]
[1762431352357,76.06541253,158.96,158.95,1e-08]
[1762431352876,76.06541253,158.96,158.9,0.1]
[1762431352877,50.0,158.92,158.9,0.1]
[1762431353055,2.19163208,158.92,158.9,0.8]
[1762431353253,19.42881102,158.98,158.9,0.8]
[1762431353254,0.71,158.99,158.91,2.19163208]
[1762431353452,2.19163208,158.97,158.91,2.19163208]
[1762431353679,2.19163208,158.97,158.9,7.09322856]
[1762431353680,2.19163208,158.97,158.92,0.7]
[1762431353976,2.19163208,158.96,158.92,0.7]
[1762431354177,7.32,158.95,158.92,0.7]
[1762431354399,6.28930817,159.0,158.93,2.19163208]
[1762431354557,6.28930817,159.0,158.9,16.18205625]
[1762431354558,20.592,158.98,158.94,2.19163208]
[1762431354883,2.19163208,158.98,158.93,6.29169306]
[1762431355377,2.19163208,158.97,158.93,6.29169306]
[1762431355583,7.32,158.96,158.92,2.19163208]
[1762431355785,9.51163208,158.96,158.91,18.27319921]
[1762431356079,7.32,158.96,158.92,2.19163208]
[1762431356579,7.32,158.96,158.93,2.19163208]
[1762431356782,7.32,158.96,158.93,9.18336739]
[1762431356988,22.78363208,159.0,158.94,2.89163208]
[1762431357288,9.51163208,158.99,158.95,0.7]
[1762431357881,2.19163208,158.98,158.95,0.7]
[1762431358956,7.32,158.97,158.95,0.7]
[1762431359157,7.32,158.97,158.95,6.99118862]
[1762431359471,29.07299674,159.0,158.95,6.99118862]
[1762431359672,9.51163208,158.99,158.96,0.7]
[1762431359980,2.19163208,158.97,158.91,9.78882769]
[1762431360180,2.19163208,158.97,158.9,36.42492442]
[1762431360181,2.19163208,158.92,158.9,0.8]
[1762431360568,21.302,158.95,158.9,0.8]
[1762431360978,2.19163208,158.93,158.9,0.8]
[1762431361181,2.19163208,158.92,158.9,0.8]
[1762431361366,7.32,158.91,158.9,0.8]
[1762431361871,2.19163208,158.92,158.9,0.1]
[1762431362180,7.32,158.91,158.9,0.8]
[1762431363564,10.22163208,158.91,158.9,0.1]
[1762431363983,9.51163208,158.91,158.9,0.1]
[1762431364871,10.22163208,158.91,158.9,0.1]
[1762431365082,15.80450225,158.91,158.9,0.1]
[1762431365297,15.80450225,158.91,158.9,0.8]
[1762431365298,9.51163208,158.91,158.9,0.8]
[1762431365485,104.7,158.94,158.9,2.99163208]
[1762431365665,7.32,158.93,158.91,2.19163208]
[1762431365874,0.71,158.98,158.92,2.19163208]
[1762431366074,7.32,158.97,158.94,2.19163208]
[1762431366276,7.32,158.97,158.91,9.78882769]
[1762431366277,7.32,158.97,158.95,2.19163208]
[1762431366671,3.28311629,158.99,158.96,0.7]
[1762431366986,7.32,158.98,158.96,0.7]
[1762431367466,7.32,158.98,158.94,2.19163208]
[1762431367668,7.32,158.98,158.95,0.7]
[1762431367867,7.32,158.98,158.95,2.89163208]
[1762431368089,7.32,158.98,158.96,2.19163208]
[1762431368293,8.48064852,159.01,158.96,2.89163208]
[1762431368484,7.32,159.0,158.97,0.7]
[1762431368669,7.32,158.99,158.97,0.7]
[1762431368987,13.0281873,158.99,158.95,0.7]
[1762431369296,13.0281873,158.99,158.94,11.99955641]
[1762431369297,13.0281873,158.99,158.96,0.7]
[1762431369473,7.32,158.99,158.96,0.7]
[1762431370985,7.32,158.99,158.96,6.99084556]
[1762431371379,7.32,158.99,158.97,0.7]
[1762431371690,112.02,158.99,158.97,0.7]
[1762431372393,117.7281873,158.99,158.97,0.7]
[1762431372594,110.4081873,158.99,158.97,0.7]
[1762431372777,5.7081873,159.05,158.98,5.7081873]
[1762431372966,7.32,159.04,159.02,5.7081873]
[1762431373366,7.32,159.04,158.99,9.78882769]
[1762431373596,7.32,159.04,159.0,0.7]
[1762431373801,7.32,159.04,159.0,6.4081873]
[1762431374305,7.32,159.04,159.01,0.7]
[1762431375082,6.99726249,159.06,159.01,0.7]
[1762431375083,7.32,159.03,159.01,6.4081873]
[1762431375282,7.32,159.03,159.01,12.69698705]
[1762431375497,7.32,159.03,159.02,0.7]
[1762431376474,110.4081873,159.09,159.02,6.4081873]
[1762431376679,110.4081873,159.09,159.05,5.7081873]
[1762431376680,7.32,159.08,159.05,5.7081873]
[1762431376874,7.32,159.07,159.03,0.7]
[1762431377078,13.0281873,159.07,159.03,0.7]
[1762431377395,20.0247296,159.07,159.03,0.7]
[1762431377585,13.0281873,159.07,159.03,0.7]
[1762431377776,7.32,159.06,159.03,6.4081873]
[1762431378099,6.4181873,159.07,159.03,0.7]
[1762431378398,13.0281873,159.06,159.03,0.7]
[1762431378797,7.32,159.06,159.03,0.7]
[1762431379375,7.32,159.06,159.03,6.98809836]
[1762431379602,7.32,159.06,159.03,0.7]
[1762431379802,13.7381873,159.06,159.01,6.4081873]
[1762431380184,13.0281873,159.06,159.02,0.7]
[1762431380378,15.33183545,159.06,159.02,0.7]
[1762431381107,21.61884186,159.06,159.02,0.7]
[1762431382617,8.01183545,159.04,158.99,0.72]
[1762431382775,8.01183545,159.02,158.97,9.78882769]
[1762431382973,7.32,159.01,158.98,0.72]
[1762431383993,13.60897366,159.01,158.98,0.72]
[1762431384177,7.32,159.01,158.98,0.72]
[1762431385598,13.60893967,159.01,158.98,0.72]
[1762431385798,14.29893967,159.01,158.97,14.30228759]
[1762431385998,14.29893967,159.01,158.97,15.02228759]
[1762431386300,13.60893967,159.01,158.97,14.30228759]
[1762431386506,7.32,159.0,158.98,0.72]
[1762431386883,7.32,159.0,158.97,6.29045214]
[1762431387082,7.32,159.0,158.97,0.72]
[1762431387982,13.6093181,159.0,158.97,0.72]
[1762431388304,121.73443229,159.0,158.95,9.71632727]
[1762431388489,11.43511419,158.99,158.94,7.01160901]
[1762431388692,11.43511419,158.99,158.95,0.72]
[1762431389002,17.72486781,158.99,158.95,0.72]
[1762431389200,17.03486781,158.99,158.95,0.72]
[1762431389590,7.32,158.99,158.95,10.43638146]
[1762431390217,104.7,159.0,158.96,0.72]
[1762431390386,10.74511419,158.99,158.94,3.42511419]
[1762431390592,3.42511419,158.98,158.93,4.14511419]
[1762431390994,17.72482458,158.99,158.94,10.43645038]
[1762431391191,8.01,158.99,158.94,10.43645038]
[1762431391394,7.32,158.99,158.95,0.72]
[1762431391599,10.74511419,158.99,158.95,0.72]
[1762431391911,17.03482624,158.99,158.95,0.72]
[1762431392300,17.72482624,158.99,158.95,0.72]
[1762431392830,17.03482624,158.99,158.94,6.29133619]
[1762431393013,17.72482624,158.99,158.95,0.72]
[1762431393308,3.42511419,158.98,158.92,16.08129606]
[1762431393509,3.42511419,158.95,158.9,4.24511419]
[1762431393722,3.42511419,158.93,158.9,0.82]
[1762431394009,7.32,158.92,158.9,0.82]
[1762431394303,7.32,158.92,158.9,0.1]
[1762431395010,7.32,158.92,158.9,0.82]
[1762431395714,7.32,158.92,158.9,0.1]
[1762431397011,14.3225212,158.92,158.9,0.1]
[1762431397209,7.32,158.92,158.9,0.1]
[1762431397409,7.32,158.92,158.9,0.82]
[1762431397914,7.32,158.92,158.9,0.1]
[1762431398500,7.32,158.92,158.9,0.82]
[1762431398810,7.32,158.92,158.9,0.1]
[1762431399008,104.7,158.91,158.9,0.1]
[1762431399919,0.71,158.91,158.9,0.1]
[1762431400125,4.13511419,158.91,158.9,0.1]
[1762431401721,10.42798436,158.91,158.9,0.1]
[1762431402705,14.32287017,158.91,158.9,0.1]
[1762431402911,17.74798436,158.91,158.9,0.1]
[1762431403717,3.42511419,158.98,158.91,9.78882769]
[1762431403916,3.42511419,159.01,158.96,3.42511419]
[1762431404227,7.32,159.0,158.98,3.42511419]
[1762431404518,56.28782705,159.04,158.98,8.0142871]
[1762431404519,7.32,158.99,158.98,8.0142871]
[1762431404721,7.32,158.99,158.98,0.72]
[1762431404923,7.32,158.99,158.98,8.7342871]
[1762431405516,7.32,158.99,158.98,15.02438648]
[1762431405714,7.32,158.99,158.98,8.7342871]
[1762431406225,7.32,158.99,158.98,7.01009938]
[1762431407512,7.32,158.99,158.98,15.02438648]
[1762431408231,7.32,158.99,158.98,8.7342871]
[1762431408425,7.32,158.99,158.98,15.02438648]
[1762431408737,7.32,158.99,158.98,8.7342871]
[1762431408946,7.32,158.99,158.98,15.02438648]
[1762431409120,0.71,159.06,158.99,9.78882769]
[1762431409304,0.71,159.06,159.01,8.0142871]
[1762431409625,112.7142871,159.07,159.02,8.0142871]
[1762431409816,105.41,159.07,159.03,0.72]
[1762431410011,7.32,159.06,159.02,8.0142871]
[1762431410208,22.33123344,159.06,159.01,15.02318628]
[1762431410613,15.01123344,159.06,159.02,0.72]
[1762431410825,7.32,159.05,159.02,0.72]
[1762431411928,0.71,159.06,159.02,7.00840522]
[1762431412103,8.7242871,159.06,159.02,0.72]
[1762431412431,7.32,159.05,159.02,0.72]
[1762431415208,7.32,159.05,159.02,7.00830263]
[1762431415410,7.32,159.05,159.02,15.02258973]
[1762431415613,104.7,159.07,159.04,8.0142871]
[1762431415906,104.7,159.11,159.06,8.0142871]
[1762431416106,7.32,159.1,159.07,8.0142871]
[1762431416530,7.32,159.1,159.04,0.66]
[1762431416531,7.32,159.1,159.08,8.6742871]
[1762431417133,7.32,159.1,159.08,6.94592525]
[1762431417336,7.32,159.1,159.08,14.96021235]
[1762431417535,0.2,159.13,159.09,18.46311479]
[1762431417718,7.52,159.13,159.1,8.0142871]
[1762431417923,7.52,159.13,159.05,38.75615846]
[1762431417924,8.0142871,159.11,159.05,29.2662871]
[1762431418129,15.3342871,159.1,159.05,29.2662871]
[1762431418327,7.32,159.09,159.05,29.2662871]
[1762431418533,7.32,159.09,159.06,0.66]
[1762431418833,15.9942871,159.09,159.05,0.66]
[1762431419031,15.3342871,159.09,159.06,0.66]
[1762431419236,15.9942871,159.09,159.05,0.66]
[1762431419438,15.3342871,159.09,159.05,0.66]
[1762431420327,7.32,159.09,159.05,14.96140339]
[1762431420839,7.32,159.09,159.06,0.66]
[1762431421140,7.98,159.09,159.05,0.66]
[1762431421316,0.66,159.08,159.04,28.6062871]
[1762431421517,8.6742871,159.08,159.04,0.66]
[1762431422134,0.66,159.07,159.03,8.0142871]
[1762431422434,15.3342871,159.06,159.01,0.66]
[1762431422643,15.3342871,159.06,159.01,6.28891264]
[1762431422859,15.9942871,159.06,159.02,0.66]
[1762431423046,8.6742871,159.05,159.01,6.94891264]
[1762431423332,8.0142871,159.05,159.01,6.28891264]
[1762431423725,8.0142871,159.05,159.01,6.94891264]
[1762431423919,15.9942871,159.06,159.02,0.66]
[1762431424315,22.28124984,159.06,159.02,0.66]
[1762431424520,8.0142871,159.05,159.02,0.66]
[1762431425046,15.9942871,159.06,159.02,0.66]
[1762431425733,15.9942871,159.06,159.0,26.88101005]
[1762431425734,8.6742871,159.05,159.0,26.88101005]
[1762431425938,8.0142871,159.03,159.0,20.592]
[1762431426142,7.32,159.02,158.99,6.94962757]
[1762431426343,7.98,159.02,158.99,6.28962757]
[1762431426524,11.40368965,159.02,158.97,29.59847966]
[1762431426724,11.40368965,159.02,158.98,6.94994597]
[1762431426939,10.74368965,159.02,158.97,3.42368965]
[1762431427146,4.08368965,159.01,158.97,0.66]
[1762431427338,4.08368965,159.01,158.97,6.2903948]
[1762431427339,3.42368965,159.01,158.97,6.2903948]
[1762431427646,0.66,159.01,158.97,10.37408445]
[1762431428331,15.33549211,159.02,158.98,0.66]
[1762431428523,15.99549211,159.02,158.98,0.66]
[1762431429417,7.98,159.02,158.98,0.66]
[1762431429618,7.98,159.02,158.98,14.96524926]
[1762431429816,7.98,159.02,158.98,6.94975715]
[1762431430835,14.26854525,159.02,158.98,6.94975715]
[1762431432546,0.66,159.01,158.97,14.30586218]
[1762431432757,0.66,159.01,158.97,14.96586218]
[1762431432924,0.66,159.01,158.97,8.67549211]
[1762431433118,8.01549211,158.98,158.93,0.66]
[1762431433323,0.66,159.01,158.93,6.95198399]
[1762431433324,15.33549211,158.97,158.93,6.95198399]
[1762431433543,15.33549211,158.96,158.93,0.66]
[1762431433740,7.32,158.95,158.92,6.29238194]
[1762431433942,7.32,158.95,158.93,0.66]
[1762431434147,7.32,158.94,158.93,0.66]
[1762431434638,7.32,158.94,158.93,6.95207827]
[1762431435860,7.32,158.94,158.93,6.29207827]
[1762431436562,7.32,158.94,158.92,6.29238271]
[1762431436748,7.32,158.94,158.92,6.95238271]
[1762431437152,8.01549211,158.96,158.92,6.95238271]
[1762431437362,7.32,158.95,158.92,6.95238271]
[1762431437888,7.32,158.95,158.9,30.48082769]
[1762431438165,0.66,158.94,158.9,21.352]
[1762431438539,112.71549211,158.93,158.9,20.692]
[1762431438755,104.7,158.97,158.91,0.66]
[1762431438962,7.32,158.96,158.91,8.67549211]
[1762431439467,7.98,158.96,158.92,0.66]
[1762431439638,7.98,158.96,158.9,0.1]
[1762431439639,8.01549211,158.94,158.9,0.1]
[1762431439844,120.69549211,158.93,158.9,0.1]
[1762431440038,7.32,158.92,158.9,0.1]
[1762431441040,7.32,158.92,158.9,0.76]
[1762431441662,7.32,158.91,158.9,0.76]
[1762431441853,7.32,158.91,158.9,0.1]
[1762431444168,8.03,158.91,158.9,0.1]
[1762431444359,13.74323166,158.91,158.9,0.1]
[1762431444671,20.03610183,158.91,158.9,0.1]
[1762431444861,7.32,158.91,158.9,0.1]
[1762431445379,8.03,158.91,158.9,0.1]
[1762431446262,104.7,158.93,158.9,6.48323166]
[1762431446466,104.7,158.93,158.92,5.71323166]
[1762431446679,7.32,158.99,158.93,9.78882769]
[1762431446846,7.32,158.99,158.97,5.71323166]
[1762431447253,7.32,158.99,158.98,6.38323166]
[1762431447566,0.71,158.98,158.94,5.71323166]
[1762431447887,7.32,158.99,158.95,6.38323166]
[1762431448260,7.32,158.99,158.95,12.67420927]
[1762431448455,0.71,158.98,158.93,9.78882769]
[1762431448770,13.03323166,158.99,158.94,0.67]
[1762431448980,20.03309115,158.99,158.94,0.67]
[1762431449151,0.71,158.98,158.94,0.67]
[1762431450166,19.32309115,158.99,158.94,6.96147461]
[1762431450358,16.51236784,158.99,158.95,0.67]
[1762431450551,10.22250835,158.99,158.95,0.67]
[1762431451552,15.80223547,158.99,158.95,0.67]
[1762431451863,15.80223547,158.99,158.91,6.29287017]
[1762431451864,2.19250835,158.96,158.91,6.29287017]
[1762431452053,7.32,158.95,158.91,6.96287017]
[1762431452252,7.32,158.95,158.92,0.67]
[1762431453667,7.32,158.95,158.92,6.96237256]
[1762431453861,2.90250835,158.94,158.9,6.39300754]
[1762431454180,2.19250835,158.93,158.9,0.1]
[1762431454359,9.51250835,158.92,158.9,0.1]
[1762431454560,2.90250835,158.92,158.9,0.1]
[1762431454772,7.32,158.91,158.9,0.1]
[1762431454961,10.22250835,158.91,158.9,0.1]
[1762431455473,0.78646029,158.94,158.9,0.1]
[1762431455474,2.19250835,158.92,158.9,0.1]
[1762431455676,7.32,158.91,158.9,0.1]
[1762431456588,7.32,158.91,158.9,7.0632662]
[1762431456880,7.32,158.92,158.9,7.0632662]
[1762431457064,7.32,158.92,158.91,0.66]
[1762431457967,7.32,158.92,158.91,6.95287017]
[1762431458467,7.32,158.92,158.91,16.74169786]
[1762431459490,7.32,158.92,158.91,22.45564516]
[1762431460076,7.32,158.92,158.9,0.1]
[1762431460077,6.3739473,158.92,158.9,0.1]
[1762431460273,13.0339473,158.91,158.9,0.1]
[1762431460686,7.32,158.91,158.9,0.1]
[1762431460987,7.32,158.91,158.9,0.76]
[1762431461387,5.7139473,158.93,158.9,0.76]
[1762431461685,7.34,158.91,158.9,0.76]
[1762431462689,7.34,158.91,158.9,0.1]
[1762431463589,13.0539473,158.91,158.9,0.1]
[1762431463770,13.7139473,158.91,158.9,0.1]
[1762431464084,8.0,158.91,158.9,0.1]
[1762431464288,13.7139473,158.91,158.9,0.1]
[1762431464674,13.0539473,158.91,158.9,0.1]
[1762431465990,13.0539473,158.91,158.9,0.76]
[1762431465991,7.34,158.91,158.9,0.76]
[1762431466198,7.34,158.91,158.9,0.1]
[1762431466788,7.34,158.91,158.9,7.0532662]
[1762431467170,7.34,158.91,158.9,0.76]
[1762431467368,104.7,158.95,158.9,12.76704144]
[1762431467683,7.32,158.94,158.91,5.7139473]
[1762431467985,7.32,158.94,158.91,0.66]
[1762431468284,7.32,158.94,158.92,0.66]
[1762431468798,7.32,158.94,158.9,12.10711301]
[1762431469099,7.32,158.94,158.9,7.05316571]
[1762431469974,7.32,158.94,158.91,0.66]
[1762431471203,0.66,158.93,158.9,0.1]
[1762431471375,6.3739473,158.93,158.9,0.1]
[1762431471885,6.3739473,158.92,158.9,0.1]
[1762431472085,7.32,158.91,158.9,0.1]
[1762431472781,112.02,158.91,158.9,0.1]
[1762431474001,118.4239473,158.91,158.9,0.1]
[1762431474179,20.01681747,158.91,158.9,0.1]
[1762431474588,14.30287017,158.91,158.9,0.1]
[1762431474784,20.01681747,158.91,158.9,0.1]
[1762431474980,6.29205424,158.94,158.9,0.1]
[1762431475295,7.32,158.93,158.9,0.1]
[1762431475476,7.32,158.93,158.9,0.78]
[1762431475871,112.02,158.93,158.9,12.78718408]
[1762431476090,6.4039473,159.01,158.92,15.50277499]
[1762431476376,7.34,159.0,158.97,5.7139473]
[1762431476570,13.7439473,159.0,158.94,15.50277499]
[1762431476776,5.7139473,158.97,158.91,0.68]
[1762431476996,7.34,158.96,158.92,6.3939473]
[1762431477393,7.34,158.96,158.93,0.68]
[1762431477969,7.34,158.96,158.91,32.59855521]
[1762431477970,13.0539473,158.96,158.91,32.59855521]
[1762431478189,13.7439473,158.96,158.91,27.56460791]
[1762431479188,13.7439473,158.96,158.91,6.97260791]
[1762431479396,6.4039473,158.95,158.91,6.97260791]
[1762431479799,7.34,158.94,158.91,6.97260791]
[1762431480430,6.4039473,158.93,158.9,0.1]
[1762431480791,5.7139473,158.93,158.9,6.39318648]
[1762431481406,5.7139473,158.92,158.9,0.1]
[1762431481724,7.34,158.91,158.9,0.1]
[1762431481898,7.34,158.91,158.9,6.3932662]
[1762431482830,7.34,158.91,158.9,7.0732662]
[1762431483116,104.7,158.93,158.9,9.26732123]
[1762431483413,7.34,158.94,158.92,2.19405503]
[1762431483915,104.7,158.98,158.93,2.87405503]
[1762431484101,7.34,158.96,158.95,2.19405503]
[1762431484315,7.34,158.96,158.94,6.38838576]
[1762431484514,104.7,158.98,158.94,6.38838576]
[1762431484717,5.70838576,158.95,158.9,22.12643171]
[1762431484922,13.04838576,158.94,158.9,6.3932662]
[1762431485136,7.34,158.93,158.9,6.3932662]
[1762431485300,7.34,158.93,158.9,7.0732662]
[1762431485501,0.69,158.92,158.9,0.1]
[1762431485701,6.39838576,158.92,158.9,0.1]
[1762431486136,0.69,158.92,158.9,0.1]
[1762431486429,7.34,158.91,158.9,0.1]
[1762431487414,7.34,158.91,158.9,6.3932662]
[1762431488518,104.7,158.95,158.9,12.78165196]
[1762431488714,7.34,158.93,158.92,5.70838576]
[1762431489040,104.7,158.95,158.92,15.49721345]
[1762431489213,104.7,158.95,158.93,12.68046403]
[1762431489410,7.34,158.97,158.94,15.49721345]
[1762431489644,7.34,158.97,158.95,6.38838576]
[1762431489948,7.34,158.97,158.93,27.73065971]
[1762431490117,7.34,158.97,158.93,28.41065971]
[1762431490316,7.34,158.97,158.93,27.73065971]
[1762431490517,7.34,158.97,158.94,0.68]
[1762431492131,7.34,158.97,158.94,6.29133459]
[1762431492917,7.34,158.97,158.94,6.97133459]
[1762431494355,5.70838576,158.95,158.91,6.29287017]
[1762431494651,7.34,158.94,158.91,6.29287017]
[1762431494849,7.34,158.94,158.91,6.97287017]
[1762431495049,7.34,158.94,158.92,6.38838576]
[1762431495355,7.34,158.94,158.92,0.68]
[1762431496358,7.34,158.94,158.92,6.97237886]
[1762431497937,7.34,158.94,158.91,12.00115704]
[1762431498258,8.03,158.94,158.91,6.29277128]
[1762431498436,13.04838576,158.94,158.9,6.39315818]
[1762431498637,104.7,158.93,158.9,6.39315818]
[1762431499257,104.7,158.93,158.9,7.07315818]
[1762431502633,105.38,158.92,158.9,0.1]
[1762431502831,7.34,158.91,158.9,0.1]
[1762431503862,7.34,158.91,158.9,6.3932662]
[1762431505245,7.34,158.91,158.9,15.1271599]
[1762431505652,7.34,158.91,158.9,7.1032662]
[1762431505958,7.34,158.91,158.9,8.8338937]
[1762431506162,7.34,158.91,158.9,0.81]
[1762431506960,7.34,158.91,158.9,24.91598759]
[1762431507169,104.7,158.98,158.91,36.67369786]
[1762431507347,112.04,158.98,158.95,8.0238937]
[1762431507659,112.04,158.98,158.96,8.0238937]
[1762431507982,112.04,158.98,158.95,8.0238937]
[1762431508464,112.04,158.98,158.95,8.7338937]
[1762431508645,112.04,158.98,158.96,0.71]
[1762431508964,112.04,158.98,158.95,8.0238937]
[1762431509166,0.68,158.97,158.93,8.7338937]
[1762431509373,7.34,158.96,158.93,14.31585634]
[1762431509580,7.34,158.96,158.93,6.29196264]
[1762431509764,8.02,158.96,158.93,6.29196264]
[1762431509958,8.02,158.96,158.92,6.29220045]
[1762431510173,8.02,158.96,158.92,7.00220045]
[1762431510377,7.34,158.96,158.93,0.71]
[1762431510574,0.68,158.95,158.92,6.29220045]
[1762431510758,7.32,158.94,158.92,7.00220045]
[1762431511459,7.32,158.94,158.92,6.29220045]
[1762431511972,7.32,158.94,158.91,35.61875104]
[1762431512166,0.68,158.93,158.91,6.29285734]
[1762431512478,0.68,158.93,158.9,6.39323685]
[1762431512673,0.68,158.93,158.9,0.1]
[1762431514380,0.68,158.93,158.9,6.39321961]
[1762431514968,0.68,158.93,158.9,0.1]
[1762431515574,7.32,158.92,158.9,6.39324448]
[1762431517484,7.32,158.92,158.9,0.1]
[1762431517859,7.32,158.92,158.9,6.39318237]
[1762431519084,7.32,158.92,158.9,0.1]
[1762431520159,0.66,158.91,158.9,0.1]
[1762431523985,14.97676387,158.91,158.9,0.1]
[1762431525183,22.29676387,158.91,158.9,0.1]
[1762431525486,92.88876387,158.91,158.9,0.1]
[1762431525689,84.86487017,158.91,158.9,0.1]
[1762431525986,92.88876387,158.91,158.9,0.1]
[1762431527892,110.89366228,158.89,158.88,0.1]
[1762431528069,21.63755598,158.89,158.88,0.1]
[1762431528267,22.29755598,158.89,158.88,0.1]
[1762431528469,17.70426595,158.89,158.88,0.1]
[1762431531589,6.29328538,158.9,158.88,0.1]
[1762431531768,7.32,158.89,158.88,0.1]
[1762431532378,10.75060367,158.89,158.82,0.1]
[1762431532569,3.43060367,158.83,158.82,0.1]
[1762431532767,10.75060367,158.83,158.82,0.1]
[1762431533994,17.72664346,158.83,158.82,0.1]
[1762431534896,20.592,158.78,158.76,0.1]
[1762431535195,10.77060367,158.77,158.76,0.1]
[1762431535394,17.74902276,158.77,158.76,0.1]
[1762431536085,10.77060367,158.77,158.76,0.1]
[1762431536288,17.06902276,158.77,158.76,0.1]
[1762431536476,22.36018192,158.77,158.76,0.1]
[1762431536983,15.02018192,158.77,158.76,0.1]
[1762431537291,0.68,158.8,158.76,0.1]
[1762431537490,20.592,158.78,158.76,0.81]
[1762431537697,15.38176283,158.77,158.76,0.1]
[1762431538005,8.04176283,158.77,158.76,0.1]
[1762431538478,15.38176283,158.77,158.76,0.1]